Cogmind - Beta 13 @@@ ROGUE MODE // 2024.04.17 @ 20:39:04 Player: iwantthegold Result: Destroyed by P-70 Sage with Tesla Rifle Performance ------------- Evolutions (5) 2500 Regions Visited (10) 2000 Robots Destroyed (115) 575 Value Destroyed (4250) 4250 Prototype IDs (11) 220 Alien Tech Used (0) 0 Bonus (293) 293 TOTAL SCORE: 9838 Bonus ------- High Alert Combat Kills 54 Follower Combat Kills 239 Cogmind --------- Core Integrity 0/1000 Matter 454/550 Energy 32/150 System Corruption 31% Temperature Cool (0) Movement Rolling (110) Ox1 Location -5/Factory Parts ------- > --- POWER (2) -------- Micro Fission Core > --- PROPULSION (4) --- Compact Wheel Armored Wheel > --- UTILITY (8) ------ Large Storage Unit Matter Compressor Enhanced Optical Array Advanced Signal Interpreter Advanced Terrain Scan Processor Advanced Melee Analysis Suite Remote Force Field > --- WEAPON (3) ------- Precision Rocket Launcher Shock Maul Power Sword > --- INVENTORY (15) --- Light Nuclear Core Light Angular Momentum Engine Improved Treads Improved Titanium Leg Improved VSS Leg Compact Wheel Actuator Array Cloaking Device Cloaking Device Remote Shield High-powered Shock Rifle Tesla Rifle Wave Gun Advanced Plasma Cannon Heavy Phase Cannon Peak State ------------ > --- POWER ------------ Neutrino Core Micro Fission Core > --- PROPULSION ------- Armored Medium Treads Heavy Treads Carbon-fiber Leg > --- UTILITY ---------- Large Storage Unit Compact Battery Matter Compressor Enhanced Optical Array Advanced Terrain Scan Processor Improved Melee Analysis Suite Improved Transmission Jammer Remote Force Field > --- WEAPON ----------- Precision Rocket Launcher Shock Maul Shock Maul > --- INVENTORY -------- Neutrino Core Micro Fission Core Improved Titanium Leg Armored Leg Compact Wheel Compact Wheel Compact Wheel Tesla Rifle Tesla Rifle Tesla Rifle Wave Gun Advanced Plasma Cannon Heavy Phase Cannon Remote Datajack Shock Maul [Rating: 92] Favorites ----------- Power Neutrino Core Engine Angular Momentum Engine Power Core Neutrino Core Reactor Fusion Reactor Propulsion Aluminum Leg Treads Heavy Treads Leg Aluminum Leg Wheel Compact Wheel Flight Unit Improved Flight Unit Utility Large Storage Unit Device Improved Reaction Control System Storage Large Storage Unit Processor Advanced Terrain Scan Processor Protection Improved Power Shielding Weapon Shock Maul Energy Gun Beam Rifle Energy Cannon Cooled Particle Cannon Ballistic Gun Assault Rifle Ballistic Cannon Magnetic Acceleration Cannon Launcher Precision Rocket Launcher Special Weapon Remote Datajack Impact Weapon Shock Maul Slashing Weapon Greatsword Special Melee Weapon Datajack Build | -11 -10 -9 -8 -7 -6 -6 -6 -5 -5 -5 ------- Run | Yrd Mat Mat Mat Fac Fac Was Fac Fac Was Fac Slots Evolved 10 | . . 2 2 2 2 . . 2 . . Power 1 | . . . . 1 . . . . . . Propulsion 2 | . . 1 1 . . . . . . . Utility 6 | . . 1 1 1 2 . . 1 . . Weapon 1 | . . . . . . . . 1 . . Parts Attached 178 | 6 6 21 10 28 6 . 36 14 . 51 Power 29 | 1 1 2 1 8 . . 6 3 . 7 Engine 13 | 1 . 2 1 3 . . 5 1 . . Core 15 | . 1 . . 5 . . 1 1 . 7 Reactor 1 | . . . . . . . . 1 . . Propulsion 52 | 2 1 11 3 8 5 . 7 2 . 13 Treads 8 | . . . . . . . 2 2 . 4 Leg 33 | 2 1 10 3 8 5 . 2 . . 2 Wheel 10 | . . . . . . . 3 . . 7 Hover . | . . . . . . . . . . . Flight 1 | . . 1 . . . . . . . . Utility 46 | 1 2 3 3 3 1 . 12 4 . 17 Device 23 | . 1 1 . 1 . . 5 3 . 12 Storage 9 | 1 1 1 . 1 1 . 3 . . 1 Processor 10 | . . 1 3 . . . 2 1 . 3 Hackware . | . . . . . . . . . . . Protection 4 | . . . . 1 . . 2 . . 1 Artifact . | . . . . . . . . . . . Weapon 51 | 2 2 5 3 9 . . 11 5 . 14 Energy Gun 19 | . 2 1 2 4 . . 3 3 . 4 Energy Cannon 6 | . . 1 . 2 . . 2 . . 1 Ballistic Gun 5 | 2 . 2 . . . . 1 . . . Ballistic Cannon 3 | . . . . . . . 3 . . . Launcher 7 | . . . 1 2 . . 1 . . 3 Special Weapon 1 | . . . . . . . 1 . . . Impact Weapon 5 | . . . . . . . . . . 5 Slashing Weapon 3 | . . . . . . . . 2 . 1 Piercing Weapon . | . . . . . . . . . . . Special Melee Weapon 2 | . . 1 . 1 . . . . . . Unidentified Prototypes 11 | . 1 2 1 4 . . . 1 . 2 Parts Lost 72 | . 1 9 3 8 1 5 14 4 1 26 Power 9 | . . 1 . . . . 3 . . 5 Propulsion 28 | . 1 3 2 6 . 2 4 . 1 9 Utility 17 | . . 1 . 2 1 1 3 2 . 7 Weapon 18 | . . 4 1 . . 2 4 2 . 5 Highest Loss Streak 8 | . 1 4 2 2 1 5 5 2 1 8 To Critical Strikes 1 | . . . . . . . . . 1 . Average Slot Usage (%) 85 | . 98 94 95 97 86 56 61 80 76 88 Engine 4 | . 5 4 9 7 6 4 8 4 . . Core 5 | . 8 6 . 6 6 4 1 1 5 8 Reactor 1 | . . . . . . . . 4 5 1 Treads 3 | . . . . . . . . 11 8 6 Leg 13 | . 27 31 32 28 26 13 2 . . 3 Wheel 2 | . . . . . . . 6 . . 7 Device 9 | . 5 2 9 6 6 3 11 14 13 11 Storage 12 | . 20 18 9 12 13 10 6 11 11 12 Processor 11 | . . 9 18 15 13 11 7 8 11 16 Protection 2 | . . . . 1 . . 3 9 5 2 Energy Gun 4 | . 3 13 8 7 6 3 1 1 5 1 Energy Cannon 2 | . . 3 9 6 6 4 1 . . . Ballistic Gun 2 | . 24 2 . . . . 3 . . . Impact Weapon 2 | . . . . . . . . . . 7 Slashing Weapon 1 | . . . . . . . . 4 5 2 Naked Turns 14 | . . . . . . 8 6 . . . Heaviest Build 80 | 14 17 37 39 52 54 53 72 74 68 80 Greatest Support 140 | 20 20 30 40 58 74 74 40 140 140 113 Greatest Overweight (x) 20 | 3 1 2 1 2 . 2 20 1 . 3 Average Overweight (x) . | . . . . . . . 2 . . . Largest Inventory Capacity 15 | 8 8 15 15 15 15 15 15 15 15 15 Average Capacity 13 | 7 8 14 15 15 15 11 6 15 15 15 Most Carried 15 | 6 8 13 15 15 15 15 9 15 15 15 Average Carried 11 | 3 7 9 13 13 15 11 3 14 15 13 Final Capacity 15 | 8 8 15 15 15 15 5 15 15 15 15 Final Carried 15 | 6 8 13 13 15 15 5 9 15 15 15 Class Distribution -------------------- 34% | Mutant 30% | Scavenger-Mutant 22% | Gladiator 4% | Infiltrator-Mutant 3% | Infiltrator-Gladiator Dominant Class ---------------- Mutant | -10/Materials Mutant | -9/Materials Scavenger-Mutant | -8/Materials Scavenger-Mutant | -7/Factory Scavenger-Mutant | -6/Factory Mutant | -6/Waste Mutant | -6/Factory Mutant | -5/Factory Infiltrator-Gladiator | -5/Waste Gladiator | -5/Factory Resources | -11 -10 -9 -8 -7 -6 -6 -6 -5 -5 -5 ----------- Run | Yrd Mat Mat Mat Fac Fac Was Fac Fac Was Fac Matter Collected 3286 | 222 226 196 98 465 61 . 597 356 . 1065 Remotely . | . . . . . . . . . . . Salvage Created 4036 | . 220 704 253 672 61 . 581 349 . 1196 Parts 240 | . 21 43 11 31 3 . 40 27 . 64 Haulers Intercepted 3 | . . 1 . 1 . . . . . 1 Recyclers Shooed 6 | . 1 . . 3 . . . . . 2 Parts Field Recycled . | . . . . . . . . . . . Retrieved Matter . | . . . . . . . . . . . Parts Self-Destructed . | . . . . . . . . . . . Prevented . | . . . . . . . . . . . Kills | -11 -10 -9 -8 -7 -6 -6 -6 -5 -5 -5 ------- Run | Yrd Mat Mat Mat Fac Fac Was Fac Fac Was Fac Combat Hostiles Destroyed 97 | . 9 18 5 11 1 . 16 8 . 29 Melee 15 | . . . . . . . . 6 . 9 Guns 29 | . 9 8 2 3 1 . 5 1 . . Cannons 18 | . . 3 3 3 . . 8 1 . . AOE 28 | . . 5 . 4 . . 3 . . 16 Classes Destroyed 14 | . 2 3 1 4 . . 3 . . 1 Worker 7 | . . . . 2 . . 2 . . 3 Builder 2 | . . . . 1 . . 1 . . . Hauler 3 | . . 1 . 1 . . . . . 1 Recycler 6 | . . 2 . 3 . . . . . 1 Swarmer 33 | . 6 8 . 4 . . 3 4 . 8 Cutter 3 | . . . . . . . 3 . . . Grunt 25 | . 3 7 2 2 . . 3 . . 8 Brawler 1 | . . . . . . . 1 . . . Duelist 3 | . . . 1 1 . . . . . 1 Sentry 13 | . . 3 2 . 1 . 2 2 . 3 Hunter 2 | . . . . 1 . . . . . 1 Programmer 15 | . . . . 3 . . 3 2 . 7 Heavy 1 | . . . . . . . 1 . . . Behemoth 1 | . . . . . . . . . . 1 Best Kill Streak 6 | . 4 6 1 5 1 . 5 2 . 6 Combat Bots Only 6 | . 4 5 1 3 1 . 5 2 . 6 Max Kills in Single Turn 4 | . 2 3 1 4 1 . 3 1 . 4 Gunslinging 1 | . 1 . . . . . . . . . Exploded 4 | . . 2 . 2 . . 3 . . 4 Melee 1 | . . . . . . . . 1 . 1 Uniques/NPCs Destroyed . | . . . . . . . . . . . Combat | -11 -10 -9 -8 -7 -6 -6 -6 -5 -5 -5 -------- Run | Yrd Mat Mat Mat Fac Fac Was Fac Fac Was Fac Hostile Shots Fired 785 | . 48 95 41 66 20 6 152 124 2 231 Missed 221 | . 11 27 6 18 11 . 50 31 . 67 Damage Taken 10915 | . 408 1498 590 1135 64 234 1705 1757 95 3429 Core 2300 | . 59 346 93 266 12 135 370 374 . 645 Absorbed by Shields 702 | . . . . . . . . . . 702 Redirected to Shielding 210 | . . . . . . . 11 83 . 116 Core Remaining (%) 62 | 100 76 13 83 62 . . 39 . . . Volleys Fired 246 | . 32 35 22 44 2 . 65 12 . 34 Largest 2 | . 2 2 2 2 2 . 2 1 . 1 Hottest 143 | . 40 133 133 112 110 . 143 81 . 65 Shots Fired 397 | . 64 65 44 83 4 . 91 12 . 34 Gun 247 | . 64 54 22 44 2 . 50 7 . 4 Cannon 114 | . . 11 22 35 2 . 39 5 . . Launcher 34 | . . . . 4 . . . . . 30 Special 2 | . . . . . . . 2 . . . Kinetic 130 | . 64 14 . . . . 47 5 . . Thermal 193 | . . 22 44 79 4 . 37 7 . . Explosive 34 | . . . . 4 . . . . . 30 Electromagnetic 38 | . . 29 . . . . 5 . . 4 Robot Hit Streak 16 | . 10 15 9 16 4 . 9 4 . 15 Robot Miss Streak 6 | . 3 3 2 4 2 . 6 2 . 2 Penetration Max . | . . . . . . . . . . . Secondary Targets 1 | . 1 . . . . . . . . . Max Gunslinging Chain 1 | . 1 . . . . . . . . . Shots Hit Robots 314 | . 39 56 28 50 3 . 53 20 . 65 Core Hits 182 | . 14 29 9 32 3 . 32 11 . 52 Critical Kills 1 | . . 1 . . . . . . . . Critical Parts Destroyed 5 | . . . . . . . . . . 5 Critical Strikes 17 | . . 1 1 2 . . 3 1 . 9 Burn 6 | . . . 1 2 . . 3 . . . Destroy 1 | . . 1 . . . . . . . . Smash 5 | . . . . . . . . . . 5 Sever 5 | . . . . . . . . 1 . 4 Melee Attacks 80 | . . 2 . 4 . . . 23 . 51 Impact 27 | . . . . . . . . . . 27 Slashing 47 | . . . . . . . . 23 . 24 Piercing . | . . . . . . . . . . . Sneak Attacks 3 | . . . . . . . . . . 3 Combat Hostiles . | . . . . . . . . . . . Follow-up Attacks 4 | . . . . . . . . . . 4 Damage Inflicted 11476 | . 478 1575 489 1572 62 . 1542 865 . 4893 Guns 2591 | . 478 623 224 380 34 . 675 97 . 80 Cannons 1837 | . . 167 265 656 28 . 670 51 . . Explosions 4078 | . . 785 . 536 . . 197 . . 2560 Melee 2970 | . . . . . . . . 717 . 2253 Ramming . | . . . . . . . . . . . Kinetic 1416 | . 478 92 . . . . 795 51 . . Thermal 2817 | . . 566 489 1036 62 . 512 97 . 55 Explosive 3771 | . . 533 . 536 . . 197 . . 2505 Electromagnetic 502 | . . 384 . . . . 38 . . 80 Impact 1112 | . . . . . . . . . . 1112 Slashing 1858 | . . . . . . . . 717 . 1141 Piercing . | . . . . . . . . . . . Highest Corruption 31 | . . 14 . . . 7 14 8 27 31 Average Corruption 19 | . . 12 . . . 7 10 7 19 28 Corruption Purged 7 | . . . . . . . . . . 7 Corruption Blocked . | . . . . . . . . . . . Effects 180 | . . 16 . . . 3 41 6 10 104 Message Errors 49 | . . 6 . . . 1 8 2 3 29 Matter Fused 48 | . . 5 . . . . 8 2 2 31 Heat Flow Errors 18 | . . 3 . . . 1 4 1 1 8 Energy Discharges 15 | . . 1 . . . . 5 . 1 8 Parts Rejected 2 | . . 1 . . . . . . 1 . Parts Fused 4 | . . . . . . . 4 . . . Data Loss (minor) 19 | . . . . . . 1 4 1 . 13 Data Loss (major) 4 | . . . . . . . . . . 4 Misfires 3 | . . . . . . . 2 . . 1 Alerts 7 | . . . . . . . 2 . 1 4 Misdirections 6 | . . . . . . . . . 1 5 Weapon Failures 5 | . . . . . . . 4 . . 1 Overload Shots . | . . . . . . . . . . . Overflow Damage 936 | . . 157 . 9 . . 61 . . 709 Projectiles 19 | . . . . 9 . . 10 . . . Explosions 375 | . . 157 . . . . 51 . . 167 Melee 542 | . . . . . . . . . . 542 Knockbacks 10 | . . . . . . . 3 . . 7 Impact 7 | . . . . . . . . . . 7 Kinetic 3 | . . . . . . . 3 . . . Secondary . | . . . . . . . . . . . Self-Inflicted Damage 945 | . . 288 . 143 . . 105 . . 409 Shots 22 | . . 6 . 6 . . 2 . . 8 Rammed . | . . . . . . . . . . . Targets Rammed . | . . . . . . . . . . . Kicked . | . . . . . . . . . . . Crushed . | . . . . . . . . . . . Highest Temperature 460 | . 2 419 284 422 14 141 460 144 183 262 Average Temperature 96 | . 2 122 114 59 8 73 103 48 97 89 Received Heat Transfer 1305 | . 147 192 270 54 18 . 234 81 . 309 Effects 3 | . . . . 1 . . 2 . . . Shutdowns 1 | . . . . . . . 1 . . . Short Circuit 1 | . . . . . . . 1 . . . Damage (minor) 1 | . . . . 1 . . . . . . Siege Activations . | . . . . . . . . . . . Robots Corrupted 1 | . . 1 . . . . . . . . Combat Hostiles 1 | . . 1 . . . . . . . . Parts Fried 8 | . . 2 . . . . . . . 6 Impact Corruptions 13 | . . . . . . . . . . 13 Robots Melted 1 | . . . . 1 . . . . . . Combat Hostiles 1 | . . . . 1 . . . . . . Parts Melted 7 | . . 1 . 3 . . 3 . . . Heat Transferred 5560 | . . 916 1110 1924 112 . 1300 148 . 50 Parts Sabotaged . | . . . . . . . . . . . Parts Stolen . | . . . . . . . . . . . Parts Stripped . | . . . . . . . . . . . Power Chain Reactions 4 | . . 4 . . . . . . . . Alert | -11 -10 -9 -8 -7 -6 -6 -6 -5 -5 -5 ------- Run | Yrd Mat Mat Mat Fac Fac Was Fac Fac Was Fac Peak Influence 547 | . 286 489 270 547 262 91 231 130 56 511 Initial 212 | . . 48 110 122 212 91 14 102 36 39 Average 172 | . 120 204 210 281 227 61 80 71 43 221 Maximum Alert Level 2 | . 1 2 1 2 1 . 1 . . 2 Low Security (%) 60 | 100 81 51 34 31 . 100 97 100 100 35 Level 1 33 | . 18 33 65 40 100 . 2 . . 62 Level 2 6 | . . 14 . 27 . . . . . 1 Level 3 . | . . . . . . . . . . . Level 4 . | . . . . . . . . . . . Level 5 . | . . . . . . . . . . . High Security . | . . . . . . . . . . . Max Security . | . . . . . . . . . . . Squads Dispatched 27 | . 1 . . 8 1 . 6 3 . 8 Investigation 9 | . 1 . . 2 1 . 1 1 . 3 Extermination 10 | . . . . 2 . . 3 2 . 3 Reinforcement 7 | . . . . 3 . . 2 . . 2 Assault . | . . . . . . . . . . . Garrison 1 | . . . . 1 . . . . . . Intercept . | . . . . . . . . . . . Searches Triggered . | . . . . . . . . . . . Construction Impeded 1 | . . . . 1 . . . . . . Haulers Reinforced 2 | . . . . 1 . . . . . 1 Active Scanning Responses . | . . . . . . . . . . . Cargo Convoy Interrupts . | . . . . . . . . . . . Stealth | -11 -10 -9 -8 -7 -6 -6 -6 -5 -5 -5 --------- Run | Yrd Mat Mat Mat Fac Fac Was Fac Fac Was Fac Distress Signals 5 | . . 4 . . . . 1 . . . Communications Jammed 2 | . . . . . . . . . . 2 Distress Signals 2 | . . . . . . . . . . 2 Times Spotted 161 | . 15 25 7 25 4 5 25 8 4 43 Peak Tracking Total 6 | . 5 5 3 3 3 5 4 3 4 6 Tactical Retreats 11 | . 1 1 1 2 . . 1 . 2 3 Traps | -11 -10 -9 -8 -7 -6 -6 -6 -5 -5 -5 ------- Run | Yrd Mat Mat Mat Fac Fac Was Fac Fac Was Fac Traps Triggered 13 | . 1 . . 3 1 . 1 1 . 6 Indirectly . | . . . . . . . . . . . Trap Hack Attempts . | . . . . . . . . . . . Triggered . | . . . . . . . . . . . Disarmed . | . . . . . . . . . . . Reprogrammed . | . . . . . . . . . . . Reused . | . . . . . . . . . . . Traps Extracted . | . . . . . . . . . . . Installed . | . . . . . . . . . . . Triggered . | . . . . . . . . . . . Machines | -11 -10 -9 -8 -7 -6 -6 -6 -5 -5 -5 ---------- Run | Yrd Mat Mat Mat Fac Fac Was Fac Fac Was Fac Machines Disabled 23 | . . 4 . 9 . . 4 1 . 5 Max in Single Turn 5 | . . 2 . 5 . . 2 1 . 1 Machines Repaired . | . . . . . . . . . . . Machines Dismantled . | . . . . . . . . . . . Machines Sabotaged . | . . . . . . . . . . . Overloaded Fab Kills . | . . . . . . . . . . . Hacking | -11 -10 -9 -8 -7 -6 -6 -6 -5 -5 -5 --------- Run | Yrd Mat Mat Mat Fac Fac Was Fac Fac Was Fac Machines Accessed 22 | . 4 2 . 6 1 . 2 3 . 4 Terminals 18 | . 3 2 . 5 . . 2 2 . 4 Fabricators 1 | . . . . 1 . . . . . . Repair Stations . | . . . . . . . . . . . Recycling Units 1 | . 1 . . . . . . . . . Scanalyzers 1 | . . . . . . . . 1 . . Garrison Access 1 | . . . . . 1 . . . . . Total Hacks 59 | . 17 8 . 10 2 . 6 6 . 10 Successful 21 | . 8 5 . 4 . . 2 2 . . Failed 38 | . 9 3 . 6 2 . 4 4 . 10 Catastrophic 8 | . 1 1 . 1 1 . 1 1 . 2 Database Lockouts . | . . . . . . . . . . . Manual 17 | . 6 1 . 5 . . . 1 . 4 Terminals 46 | . 12 8 . 8 . . 6 2 . 10 Fabricators 2 | . . . . 2 . . . . . . Repair Stations . | . . . . . . . . . . . Recycling Units 5 | . 5 . . . . . . . . . Scanalyzers 4 | . . . . . . . . 4 . . Garrison Access 2 | . . . . . 2 . . . . . Terminal Hacks 11 | . 2 4 . 3 . . 2 . . . Open DSF 2 | . . . . 2 . . . . . . Branch Access Points 1 | . 1 . . . . . . . . . Alert Level 3 | . . 1 . 1 . . 1 . . . Unreport Threat 1 | . . 1 . . . . . . . . Locate Traps 1 | . . . . . . . 1 . . . Investigation Status 1 | . 1 . . . . . . . . . Reinforcement Status 1 | . . 1 . . . . . . . . Zone Layout 1 | . . 1 . . . . . . . . Fabricator Hacks . | . . . . . . . . . . . Repair Station Hacks . | . . . . . . . . . . . Recycling Unit Hacks 3 | . 3 . . . . . . . . . Process 1 | . 1 . . . . . . . . . Report Inventory 1 | . 1 . . . . . . . . . Retrieve Matter 1 | . 1 . . . . . . . . . Scanalyzer 2 | . . . . . . . . 2 . . Insert Component 1 | . . . . . . . . 1 . . Analyze 1 | . . . . . . . . 1 . . Garrison Access Hacks . | . . . . . . . . . . . Unauthorized Hacks 5 | . 3 1 . 1 . . . . . . Terminals 5 | . 3 1 . 1 . . . . . . Botnet 5 | . 3 1 . 1 . . . . . . Fabricators . | . . . . . . . . . . . Repair Stations . | . . . . . . . . . . . Recycling Units . | . . . . . . . . . . . Scanalyzers . | . . . . . . . . . . . Garrison Access . | . . . . . . . . . . . Data Cores Recovered . | . . . . . . . . . . . Used . | . . . . . . . . . . . Hacking Detections 18 | . 4 1 . 4 1 . 2 2 . 4 Full Trace Events 10 | . 3 . . 1 1 . 1 1 . 3 Feedback Events . | . . . . . . . . . . . Feedback Blocked . | . . . . . . . . . . . Robot Schematics Acquired . | . . . . . . . . . . . Robots Built . | . . . . . . . . . . . Authchips . | . . . . . . . . . . . Time . | . . . . . . . . . . . Total Robot Build Rating . | . . . . . . . . . . . Part Schematics Acquired 1 | . . . . . . . . 1 . . Parts Built . | . . . . . . . . . . . Authchips . | . . . . . . . . . . . Time . | . . . . . . . . . . . Total Part Build Rating . | . . . . . . . . . . . Parts Repaired . | . . . . . . . . . . . Time . | . . . . . . . . . . . Parts Recycled . | . . . . . . . . . . . Recycled Matter 175 | . 175 . . . . . . . . . Retrieved Matter 372 | . 372 . . . . . . . . . Retrieved Components . | . . . . . . . . . . . Parts Scanalyzed 1 | . . . . . . . . 1 . . Part Schematics Acquired 1 | . . . . . . . . 1 . . Parts Damaged . | . . . . . . . . . . . Bothacking | -11 -10 -9 -8 -7 -6 -6 -6 -5 -5 -5 ------------ Run | Yrd Mat Mat Mat Fac Fac Was Fac Fac Was Fac Used RIF Installer . | . . . . . . . . . . . Robots Hacked 2 | . . 1 . 1 . . . . . . Non-combat . | . . . . . . . . . . . Combat 2 | . . 1 . 1 . . . . . . Robot Hacks Applied 2 | . . 1 . 1 . . . . . . parse_system 2 | . . 1 . 1 . . . . . . Relay Couplers Released . | . . . . . . . . . . . Fabnet Peak Effective % . | . . . . . . . . . . . Robots Rewired . | . . . . . . . . . . . Allies Hacked . | . . . . . . . . . . . Hacks Repelled . | . . . . . . . . . . . Allies | -11 -10 -9 -8 -7 -6 -6 -6 -5 -5 -5 -------- Run | Yrd Mat Mat Mat Fac Fac Was Fac Fac Was Fac Total Allies 7 | . . . . 3 . 1 3 . . . Largest Group 3 | . . . . 3 . 1 3 . . . Highest-Rated Group 93 | . . . . 93 . 31 93 . . . Highest-Rated Ally 31 | . . . . 31 . 31 31 . . . Total Orders . | . . . . . . . . . . . Ally Attacks 77 | . . . . 32 . 10 35 . . . Total Damage 1113 | . . . . 381 . 168 564 . . . Kills 9 | . . . . 8 . . 1 . . . Allies Corrupted . | . . . . . . . . . . . Allies Melted . | . . . . . . . . . . . Intel | -11 -10 -9 -8 -7 -6 -6 -6 -5 -5 -5 ------- Run | Yrd Mat Mat Mat Fac Fac Was Fac Fac Was Fac Robot Analysis Total . | . . . . . . . . . . . Derelict Logs Recovered . | . . . . . . . . . . . Drone Launches . | . . . . . . . . . . . Drone Recoveries . | . . . . . . . . . . . Exploration | -11 -10 -9 -8 -7 -6 -6 -6 -5 -5 -5 ------------- Run | Yrd Mat Mat Mat Fac Fac Was Fac Fac Was Fac Turns Passed 7771 | 84 538 651 364 1365 150 92 1174 1100 181 2072 Spaces Moved 4420 | 52 350 269 154 774 112 87 630 591 114 1287 Core 174 | 11 . . . . . 42 121 . . . Treads 1187 | . . . . . . . 10 591 114 472 Legs 1779 | 41 350 269 154 774 112 45 34 . . . Wheels 1280 | . . . . . . . 465 . . 815 Hover . | . . . . . . . . . . . Flight . | . . . . . . . . . . . Fastest Speed 50 | 50 120 120 120 120 120 50 50 160 160 93 Average Speed 143 | 134 120 175 149 141 120 106 150 160 160 134 Slowest Speed 1050 | 200 190 260 190 260 120 260 1050 240 160 240 Overloaded Moves . | . . . . . . . . . . . Propulsion Burnouts . | . . . . . . . . . . . Robots Hopped . | . . . . . . . . . . . Cave-ins Triggered 2 | . . 2 . . . . . . . . Exploration Rate (%) 30 | 5 53 20 19 25 5 76 13 13 69 36 Regions Visited 10 Branch Regions . Pre-discovered Areas . | . . . . . . . . . . . Known Exits Taken 2 | . . . 1 1 . . . . . . Unknown Exits Taken 4 | 1 1 1 . . . . 1 . . . Scrap Searched . | . . . . . . . . . . . Spaces Dug . | . . . . . . . . . . . Terrain Destroyed 425 | . . 79 . 113 . . 22 . . 211 Melee . | . . . . . . . . . . . Projectile 11 | . . . . 3 . . 8 . . . AOE 414 | . . 79 . 110 . . 14 . . 211 Terrain Rammed . | . . . . . . . . . . . Walls Destroyed . | . . . . . . . . . . . Machines Disabled . | . . . . . . . . . . . Actions | -11 -10 -9 -8 -7 -6 -6 -6 -5 -5 -5 --------- Run | Yrd Mat Mat Mat Fac Fac Was Fac Fac Was Fac Total 5341 | 63 406 379 245 968 128 86 760 689 113 1504 Wait 222 | . 2 40 47 69 . . 12 13 . 39 Move 4412 | 51 349 268 153 773 112 86 629 591 113 1287 Hop . | . . . . . . . . . . . Pick Up 106 | 6 8 9 7 19 2 . 9 19 . 27 Fast Attach 89 | 6 4 6 2 9 1 . 26 6 . 29 Attach 56 | . 1 10 6 7 . . 8 4 . 20 Detach 16 | . . 2 1 3 . . 3 3 . 4 Swap 34 | . 1 5 2 13 5 . 2 4 . 2 Drop 80 | . 9 2 5 22 6 . 6 14 . 16 Fire 246 | . 32 35 22 44 2 . 65 12 . 34 Melee 75 | . . 2 . 4 . . . 23 . 46 Ram . | . . . . . . . . . . . Kick . | . . . . . . . . . . . Crush . | . . . . . . . . . . . Escape Stasis 5 | . . . . 5 . . . . . . Rewire . | . . . . . . . . . . . Trap . | . . . . . . . . . . . Miscellaneous . | . . . . . . . . . . . Route ------- -11/Scrapyard -10/Materials (discovered 4 exits: *Mat / Min x2 / [Sub]) -9/Materials (discovered 2 exits: [*Mat] / [*Min]) -8/Materials -7/Factory -6/Factory -6/Waste -6/Factory -5/Factory -5/Waste -5/Factory History --------- Turn | Location | Event 2 | -11/Scrapyard | Met Revision 17 47 | -11/Scrapyard | Discovered new exit (range 15) 85 | -11/Scrapyard | Entered Materials 236 | -10/Materials | Discovered new exit (range 9) 333 | -10/Materials | Build established: Mutant 409 | -10/Materials | Identified exit to Mines 527 | -10/Materials | Discovered new exit (range 3) 623 | -10/Materials | Entered another Materials area 623 | -9/Materials | Evolved 2 slots: Propulsion x1, Utility x1 957 | -9/Materials | Lost 3 parts (2n1w) 987 | -9/Materials | Crushed by falling debris 987 | -9/Materials | Core integrity fell below 50% 990 | -9/Materials | Crushed by falling debris 990 | -9/Materials | Core integrity fell below 20% 990 | -9/Materials | System corruption reached 10% 1021 | -9/Materials | Lost 4 parts (1p1u2w) 1177 | -9/Materials | Discovered new exit (range 8) 1213 | -9/Materials | Discovered new exit (range 10) 1274 | -9/Materials | Entered another Materials area 1274 | -8/Materials | Evolved 2 slots: Propulsion x1, Utility x1 1345 | -8/Materials | Found Prototype Launcher 1345 | -8/Materials | Identified Rocket Array 1348 | -8/Materials | Found Rocket Array 1567 | -8/Materials | Build established: Scavenger-Mutant 1594 | -8/Materials | Discovered new exit (range 5) 1636 | -8/Materials | Identified exit to Factory 1638 | -8/Materials | Entered Factory 1638 | -7/Factory | Evolved 2 slots: Power x1, Utility x1 2364 | -7/Factory | Allied Derelicts emerged from ambush trap array 2514 | -7/Factory | P-60 Hacker assimilated allied 86-EKS(g) 2769 | -7/Factory | Garrison activated, responded to threat 2988 | -7/Factory | Discovered new exit (range 6) 3002 | -7/Factory | Identified exit to Factory 3003 | -7/Factory | Entered another Factory area 3003 | -6/Factory | Evolved 2 slots: Utility x2 3153 | -6/Factory | Sucked down chute 3153 | -6/Factory | Entered Waste 3154 | -6/Waste | Met a frightened Derelict 3163 | -6/Waste | Spotted C-40 Crusher 3164 | -6/Waste | Spotted C-40 Crusher 3168 | -6/Waste | EMP discharged 3169 | -6/Waste | Spotted C-40 Crusher 3188 | -6/Waste | Spotted C-40 Crusher 3199 | -6/Waste | Crushed by Compactor (1 part destroyed, 1 dropped) 3208 | -6/Waste | Crushed by Compactor (1 part destroyed, 2 dropped) 3211 | -6/Waste | Crushed by Compactor (1 part destroyed, 1 dropped) 3212 | -6/Waste | Crushed by Compactor (1 part destroyed, 2 dropped) 3229 | -6/Waste | Spotted C-40 Crusher 3233 | -6/Waste | Spotted C-40 Crusher 3236 | -6/Waste | Discovered new exit (range 14) 3237 | -6/Waste | Crushed by Compactor (1 part destroyed, 2 dropped) 3245 | -6/Waste | Entered Factory 3268 | -6/Factory | Lost 5 parts (2n1u2w) 3361 | -6/Factory | Lost 4 parts (1p1n2w) 3429 | -6/Factory | Build established: Mutant 3599 | -6/Factory | Core integrity fell below 50% 3610 | -6/Factory | System corruption reached 10% 4084 | -6/Factory | Lost 5 parts (1p3u1w) 4303 | -6/Factory | Allied Derelicts emerged from ambush trap array 4318 | -6/Factory | Discovered new exit (range 14) 4419 | -6/Factory | Entered another Factory area 4419 | -5/Factory | Evolved 2 slots: Utility x1, Weapon x1 5260 | -5/Factory | Build established: Infiltrator-Mutant 5519 | -5/Factory | Sucked down chute 5519 | -5/Factory | Entered Waste 5534 | -5/Waste | EMP discharged 5534 | -5/Waste | System corruption reached 10% 5551 | -5/Waste | Spotted C-40 Crusher 5583 | -5/Waste | Spotted C-40 Crusher 5598 | -5/Waste | Spotted C-40 Crusher 5633 | -5/Waste | Spotted C-40 Crusher 5634 | -5/Waste | EMP discharged 5656 | -5/Waste | Spotted C-40 Crusher 5676 | -5/Waste | Discovered new exit (range 16) 5700 | -5/Waste | Entered Factory 6088 | -5/Factory | Build established: Gladiator 6189 | -5/Factory | Spotted B-75 Beast 6227 | -5/Factory | Destroyed B-75 Beast 6228 | -5/Factory | Core integrity fell below 50% 6880 | -5/Factory | Lost 8 parts (2p2n3u1w) 7419 | -5/Factory | Lost 3 parts (2p1w) 7472 | -5/Factory | Core integrity fell below 20% 7769 | -5/Factory | System corruption reached 30% 7772 | -5/Factory | Destroyed by P-70 Sage with Tesla Rifle Last Messages --------------- 07708_ IM#F8:6UI6CU QP%Y| HXIQFNN%G6NE>Z:IUK 07723_ System corrupted: Matter fused (-6). 07731_ S-27 Virus destroyed. 07731_ Construction Platform disabled. 07731_ S-27 Virus destroyed. 07731_ Destroyed VTOL Module. 07731_ S-27 Virus destroyed. 07739_ System corrupted: Matter fused (-8). 07741_ Acquired 12 matter. 07744_ Acquired Lgt. Nuclear Core. 07746_ Acquired 5 matter. 07766_ K-01 Serf destroyed. 07766_ Com. Wheel destroyed. 07766_ Neutrino Core destroyed. 07768_ Destroyed Imp. Heat Sink. 07768_ Arm. Leg destroyed. 07768_ Destroyed Arm. Leg. 07769_ Imp. Core Shielding destroyed. 07770_ The unstable cave ceiling collapses. 07771_ K-01 Serf collects debris. Map ----- +----------------------------------------------------+ | | | | | | | ?????????????????????????????????????????????????? | | ?????????????????????????????????????????????????? | | ?????????????????????????????????????????????????? | | ?????????????????????????????????#???????????????? | | ????????????????????????????????? ?????????????? | | ????????????????????????????????? ?????????????? | | ????????????????????????????????? ?????????????? | | ???????????????????????????????? ?????????????? | | ?????????????#???????????????##? ?????????????? | | ????????????? ????????? ?? #?????????????? | | ?????????????? ?????????? ?? ??????????????? | | ????????????? ????????? """ ??????????????? | | ????????????? ????????? ""F"" ??????????????? | | ??????????????" " ????????? "" "" ???????????????? | | ????????????? " " "????????? ?#?????????????? | | ???????????#? " " " ????????? ??????????????? | | ???????????# " " " ????????# #???????????????? | | ???????????# " " " ??###### #???????????????? | | ???????????# " " " ### # ## ###########?????? | | ???????????# " " " # # # ##????? | | ???????????# " " " #????? | | ???????????+ " " " ! # #????? | | ???????????# @ # #????? | | ???????????# p #????? | | ???????????########+## # #????? | | ???????????????????? p [ k ##????? | | ?????????????????? # [ "##?????? | | ????????????????? # = "#??????? | | ??????????????? !!!# # ### #??????? | | ??????????????# """ !!!######?# ## # ##??????? | | ??????????????# """ !! ???????# #### #???????? | | ??????????????# """ ???????# #??# #???????? | | ??????????????# ????????# #??# #???????? | | ???????????????+################ #??# #???????? | | ???????????????????# "T" #??# +???????? | | ???????????????????# #??# #???????? | | ???????????????????# #??# #???????? | | ???????????????????# """ """ #### #???????? | | ???????????????????# """ """ #???????? | | ????????????????? """ """ ! ######### | | ??????????????? | | ??????????????? ######## | | ????????????????###########+## #?# # | | ?????????????????????????????###+###?# # | | ?????????????????????????????????????# # | | ?????????????????????????????????????# # | | ?????????????????????????????????????# + | +----------------------------------------------------+ Best States ------------- Heat Dissipation 59 Energy Generation 37 Energy Capacity 690 Matter Stores 550 Matter Capacity 700 Sight Range 22 Terrain Scan Density 410 ECM Strength 2 Jamming Range 14 Cloak Strength 2 Armor Coverage 150 Resistance: EX 50 Core Shielding 30 Power Shielding 66 Point Defense Rating 160 Evasion (%) 55 Targeting Accuracy 6 Melee Accuracy 8 Recoil Reduction 4 Item Schematics ----------------- Tesla Rifle | -5/Factory | Scanalyzed Robot Schematics ------------------ None Fabricated ------------ Nothing Alien Tech Used ----------------- None Achievements -------------- Below Deadly Force Challenges ------------ None Game ------ Seed StormPiercingBooster Manual? 0 Play Time 01:26:39 Cumulative 28.0 hours Start 2024.04.17 @ 09:11:20 End 2024.04.17 @ 20:39:04 Sessions 3 Manual Loads 0 Difficulty Rogue Special Mode None Game No. 39 Rogue 39 Adventurer 0 Explorer 0 Win Type - Total 0 Types 0/0/0/0/0/0/0/0/0 Lore% 15 Gallery% 27 Achievement% 19 Wizard Run 0 Options --------- Layout 1 ASCII 0 Keyboard 0 Movement Mouse Keybinds 0 Fullscreen 1 Font 18/SmallcapsGlow Map View 54x44 Zoom Use 0% Tactical HUD 1 Map Filters NONE Filters NONE Steam 0 RUN: 473b5ffd-7777-4f8d-8743-ddabba7cb401